[Event "*** Titled Tuesday Blitz"]
[Site "Chess.com"]
[Date "2020.11.03"]
[Round "6"]
[White "Tomekas1"]
[Black "Korchmar_Vasiliy"]
[Result "0-1"]
[WhiteElo "2469"]
[BlackElo "2625"]
[TimeControl "180+1"]
[EndTime "11:09:21 PST"]
[Termination "Korchmar_Vasiliy won by resignation"]

1. e4 {[%clk 0:03:00.9]} 1... c5 {[%clk 0:02:59.4]} 2. Nf3 {[%clk 0:03:00.9]}
2... d6 {[%clk 0:03:00]} 3. d4 {[%clk 0:03:01.3]} 3... cxd4 {[%clk 0:03:00.9]}
4. Nxd4 {[%clk 0:03:02.2]} 4... Nf6 {[%clk 0:03:01.6]} 5. Nc3 {[%clk 0:03:02.9]}
5... Nc6 {[%clk 0:03:02.2]} 6. Be3 {[%clk 0:03:03.6]} 6... e5 {[%clk 0:03:01]}
7. Nb3 {[%clk 0:03:02.5]} 7... Be7 {[%clk 0:03:00.7]} 8. f3 {[%clk 0:03:02.1]}
8... O-O {[%clk 0:03:01.1]} 9. Qd2 {[%clk 0:03:02]} 9... Be6 {[%clk 0:02:58.7]}
10. g4 {[%clk 0:02:59.8]} 10... d5 {[%clk 0:02:52.7]} 11. exd5 {[%clk 0:02:55]}
11... Nxd5 {[%clk 0:02:52.5]} 12. Nxd5 {[%clk 0:02:50.8]} 12... Bxd5 {[%clk
0:02:47]} 13. Bg2 {[%clk 0:02:32.7]} 13... Bh4+ {[%clk 0:02:44.4]} 14. Bf2
{[%clk 0:02:32.9]} 14... Bxf2+ {[%clk 0:02:38.1]} 15. Qxf2 {[%clk 0:02:32]}
15... Bc4 {[%clk 0:02:31]} 16. Nd2 {[%clk 0:02:22.3]} 16... Qa5 {[%clk
0:02:15.1]} 17. c3 {[%clk 0:02:16.6]} 17... Ba6 {[%clk 0:02:09.8]} 18. Nb3
{[%clk 0:02:06.4]} 18... Qc7 {[%clk 0:01:47.9]} 19. Bf1 {[%clk 0:01:52.2]} 19...
e4 {[%clk 0:01:23.1]} 20. Bxa6 {[%clk 0:01:48]} 20... bxa6 {[%clk 0:01:17.2]}
21. O-O-O {[%clk 0:01:28.2]} 21... Qf4+ {[%clk 0:01:10]} 22. Qd2 {[%clk
0:01:28.7]} 22... e3 {[%clk 0:01:08.7]} 23. Qd6 {[%clk 0:01:24]} 23... Ne5
{[%clk 0:00:59.2]} 24. Rd4 {[%clk 0:01:21.1]} 24... Qxf3 {[%clk 0:00:57.9]} 25.
Qd5 {[%clk 0:01:05.8]} 25... Qxd5 {[%clk 0:00:51]} 26. Rxd5 {[%clk 0:01:05.9]}
26... Nxg4 {[%clk 0:00:51]} 27. h3 {[%clk 0:00:47.9]} 27... Nf2 {[%clk
0:00:47.9]} 28. Re1 {[%clk 0:00:45.6]} 28... Rae8 {[%clk 0:00:48.5]} 29. Nc5
{[%clk 0:00:38.2]} 29... f5 {[%clk 0:00:43.8]} 30. Nd7 {[%clk 0:00:27.1]} 30...
Rf7 {[%clk 0:00:44.1]} 31. Ne5 {[%clk 0:00:27.6]} 31... Rxe5 {[%clk 0:00:44.7]}
32. Rxe5 {[%clk 0:00:27.6]} 32... Nd3+ {[%clk 0:00:44.9]} 33. Kc2 {[%clk
0:00:28.2]} 33... Nxe5 {[%clk 0:00:45.8]} 34. Rxe3 {[%clk 0:00:28.8]} 0-1

[Event "*** Titled Tuesday Blitz"]
[Site "Chess.com"]
[Date "2020.11.03"]
[Round "6"]
[White "TorFredrikKaasen"]
[Black "GMHess"]
[Result "1-0"]
[WhiteElo "2712"]
[BlackElo "2855"]
[TimeControl "180+1"]
[EndTime "11:09:22 PST"]
[Termination "TorFredrikKaasen won by checkmate"]

1. d4 {[%clk 0:03:00.9]} 1... g6 {[%clk 0:03:00.1]} 2. c4 {[%clk 0:03:01.5]}
2... Bg7 {[%clk 0:03:00.6]} 3. e4 {[%clk 0:03:01.9]} 3... d6 {[%clk 0:03:00.8]}
4. Nc3 {[%clk 0:03:00.9]} 4... c5 {[%clk 0:03:01]} 5. Nge2 {[%clk 0:02:56.7]}
5... cxd4 {[%clk 0:02:57.2]} 6. Nxd4 {[%clk 0:02:57.6]} 6... Nf6 {[%clk
0:02:57.6]} 7. Be2 {[%clk 0:02:56.6]} 7... O-O {[%clk 0:02:58.1]} 8. O-O {[%clk
0:02:56.2]} 8... Nc6 {[%clk 0:02:57.8]} 9. Be3 {[%clk 0:02:56.7]} 9... Bd7
{[%clk 0:02:57.9]} 10. Nb3 {[%clk 0:02:49]} 10... b6 {[%clk 0:02:57.4]} 11. f3
{[%clk 0:02:47.8]} 11... Rc8 {[%clk 0:02:55.1]} 12. Qd2 {[%clk 0:02:43.5]} 12...
Ne5 {[%clk 0:02:52.3]} 13. Qd4 {[%clk 0:02:19.7]} 13... Nh5 {[%clk 0:02:27.1]}
14. Qd2 {[%clk 0:01:56.3]} 14... Nxc4 {[%clk 0:02:24.8]} 15. Bxc4 {[%clk
0:01:57.2]} 15... Rxc4 {[%clk 0:02:25.2]} 16. Rac1 {[%clk 0:01:49.9]} 16... Be6
{[%clk 0:02:10]} 17. Nd5 {[%clk 0:01:47.9]} 17... Bxd5 {[%clk 0:02:04.2]} 18.
exd5 {[%clk 0:01:41.4]} 18... Ra4 {[%clk 0:01:16]} 19. a3 {[%clk 0:01:36]} 19...
Qd7 {[%clk 0:01:15.4]} 20. Nd4 {[%clk 0:01:35.3]} 20... Bxd4 {[%clk 0:01:06.2]}
21. Bxd4 {[%clk 0:01:36.2]} 21... Qf5 {[%clk 0:00:46.7]} 22. b3 {[%clk
0:01:24.8]} 22... Rxa3 {[%clk 0:00:18.6]} 23. g4 {[%clk 0:01:24.8]} 23... Qxd5
{[%clk 0:00:13.8]} 24. gxh5 {[%clk 0:01:25.1]} 24... Rxb3 {[%clk 0:00:12.5]} 25.
Rc7 {[%clk 0:01:13.3]} 25... Rxf3 {[%clk 0:00:07.2]} 26. Rxf3 {[%clk 0:01:06]}
26... Qxf3 {[%clk 0:00:08.1]} 27. Rxe7 {[%clk 0:01:06.5]} 27... Qg4+ {[%clk
0:00:07.9]} 28. Kf1 {[%clk 0:01:00]} 28... Qxh5 {[%clk 0:00:07.6]} 29. Qf4
{[%clk 0:00:54.6]} 29... Rc8 {[%clk 0:00:03.2]} 30. Qxf7# {[%clk 0:00:51]} 1-0

[Event "*** Titled Tuesday Blitz"]
[Site "Chess.com"]
[Date "2020.11.03"]
[Round "6"]
[White "GM_Huschenbeth"]
[Black "IMJonathanCarlstedt"]
[Result "1-0"]
[WhiteElo "2403"]
[BlackElo "2502"]
[TimeControl "180+1"]
[EndTime "11:09:23 PST"]
[Termination "GM_Huschenbeth won by resignation"]

1. e4 {[%clk 0:03:00.9]} 1... g6 {[%clk 0:02:56.5]} 2. d4 {[%clk 0:03:00.5]}
2... Bg7 {[%clk 0:02:57.1]} 3. Nc3 {[%clk 0:03:01.2]} 3... d6 {[%clk 0:02:57.6]}
4. f4 {[%clk 0:03:01.2]} 4... a6 {[%clk 0:02:58.1]} 5. a4 {[%clk 0:02:53.1]}
5... Nc6 {[%clk 0:02:52.1]} 6. Be3 {[%clk 0:02:46.2]} 6... e5 {[%clk 0:02:48.6]}
7. dxe5 {[%clk 0:02:06.3]} 7... dxe5 {[%clk 0:02:48.2]} 8. Qxd8+ {[%clk
0:02:07]} 8... Kxd8 {[%clk 0:02:47.3]} 9. O-O-O+ {[%clk 0:02:05.7]} 9... Bd7
{[%clk 0:02:46.9]} 10. Bc4 {[%clk 0:02:04.9]} 10... Nh6 {[%clk 0:02:40.3]} 11.
h3 {[%clk 0:01:56.2]} 11... Kc8 {[%clk 0:02:38.6]} 12. Nf3 {[%clk 0:01:54.8]}
12... Be6 {[%clk 0:02:26.9]} 13. Bxe6+ {[%clk 0:01:35.1]} 13... fxe6 {[%clk
0:02:27.8]} 14. Ng5 {[%clk 0:01:35.5]} 14... exf4 {[%clk 0:01:54.2]} 15. Bxf4
{[%clk 0:01:33.7]} 15... Nd4 {[%clk 0:01:54.1]} 16. Rhf1 {[%clk 0:00:57.1]}
16... b5 {[%clk 0:01:35.7]} 17. Be3 {[%clk 0:00:53.5]} 17... e5 {[%clk
0:01:35.1]} 18. Nf7 {[%clk 0:00:45]} 18... Rf8 {[%clk 0:01:24.6]} 19. Nxh6
{[%clk 0:00:43]} 19... b4 {[%clk 0:01:19.2]} 20. Nd5 {[%clk 0:00:38.5]} 20...
Kb7 {[%clk 0:01:13.4]} 21. Nf7 {[%clk 0:00:18.2]} 21... a5 {[%clk 0:01:08.7]}
22. c3 {[%clk 0:00:16.2]} 22... Nc6 {[%clk 0:01:03.2]} 23. Ng5 {[%clk
0:00:13.4]} 23... bxc3 {[%clk 0:01:00.9]} 24. bxc3 {[%clk 0:00:13.1]} 24... Bh6
{[%clk 0:00:58.6]} 25. Ne6 {[%clk 0:00:12.2]} 25... Bxe3+ {[%clk 0:00:56.6]} 26.
Nxe3 {[%clk 0:00:13.1]} 26... Rfe8 {[%clk 0:00:56.5]} 27. Nc5+ {[%clk 0:00:13]}
27... Kb6 {[%clk 0:00:57.2]} 28. Nd7+ {[%clk 0:00:13]} 28... Kb7 {[%clk
0:00:56.9]} 29. Nd5 {[%clk 0:00:13.6]} 29... Rad8 {[%clk 0:00:53.5]} 30. Nc5+
{[%clk 0:00:13.7]} 30... Ka7 {[%clk 0:00:54.4]} 31. Kc2 {[%clk 0:00:14.3]} 31...
Rc8 {[%clk 0:00:52.8]} 32. Rb1 {[%clk 0:00:14.3]} 1-0

[Event "*** Titled Tuesday Blitz"]
[Site "Chess.com"]
[Date "2020.11.03"]
[Round "6"]
[White "zurzan"]
[Black "queen_iryna"]
[Result "0-1"]
[WhiteElo "2062"]
[BlackElo "2264"]
[TimeControl "180+1"]
[EndTime "11:09:23 PST"]
[Termination "queen_iryna won by checkmate"]

1. f4 {[%clk 0:03:00.9]} 1... d6 {[%clk 0:02:53.6]} 2. Nf3 {[%clk 0:03:00.7]}
2... Nd7 {[%clk 0:02:53.8]} 3. g3 {[%clk 0:03:00.1]} 3... e5 {[%clk 0:02:53.7]}
4. fxe5 {[%clk 0:03:00.1]} 4... dxe5 {[%clk 0:02:53.4]} 5. d3 {[%clk 0:03:00]}
5... Ngf6 {[%clk 0:02:52.3]} 6. Bg2 {[%clk 0:02:59.8]} 6... Bc5 {[%clk
0:02:52.3]} 7. e3 {[%clk 0:02:57.7]} 7... O-O {[%clk 0:02:50.7]} 8. O-O {[%clk
0:02:57.5]} 8... e4 {[%clk 0:02:43.2]} 9. Ng5 {[%clk 0:02:41.8]} 9... exd3
{[%clk 0:02:33.9]} 10. cxd3 {[%clk 0:02:40.2]} 10... Qe7 {[%clk 0:02:27.2]} 11.
d4 {[%clk 0:02:35.7]} 11... Bb6 {[%clk 0:02:27.2]} 12. Nc3 {[%clk 0:02:24.6]}
12... c5 {[%clk 0:02:20.5]} 13. Nf3 {[%clk 0:02:09.1]} 13... cxd4 {[%clk
0:02:09.5]} 14. Nxd4 {[%clk 0:02:07.7]} 14... Nc5 {[%clk 0:02:05.2]} 15. Qc2
{[%clk 0:01:56.2]} 15... Bg4 {[%clk 0:01:53.5]} 16. h3 {[%clk 0:01:50.5]} 16...
Bh5 {[%clk 0:01:53.2]} 17. Kh2 {[%clk 0:01:47.1]} 17... Bg6 {[%clk 0:01:52.5]}
18. Nf5 {[%clk 0:01:39.8]} 18... Qe5 {[%clk 0:01:40.1]} 19. e4 {[%clk
0:01:33.8]} 19... Rad8 {[%clk 0:00:38.9]} 20. Bf4 {[%clk 0:01:32.4]} 20... Qe6
{[%clk 0:00:38.2]} 21. Rae1 {[%clk 0:00:55.9]} 21... Nd3 {[%clk 0:00:32.8]} 22.
Nd5 {[%clk 0:00:30.3]} 22... Nxe1 {[%clk 0:00:30.9]} 23. Rxe1 {[%clk 0:00:30.4]}
23... Rxd5 {[%clk 0:00:29.8]} 24. exd5 {[%clk 0:00:24.7]} 24... Qxe1 {[%clk
0:00:29.7]} 25. d6 {[%clk 0:00:17.6]} 25... Qg1# {[%clk 0:00:28.9]} 0-1

[Event "*** Titled Tuesday Blitz"]
[Site "Chess.com"]
[Date "2020.11.03"]
[Round "6"]
[White "Everyfishknows"]
[Black "Akhayan"]
[Result "1-0"]
[WhiteElo "2405"]
[BlackElo "2264"]
[TimeControl "180+1"]
[EndTime "11:09:28 PST"]
[Termination "Everyfishknows won by resignation"]

1. Nf3 {[%clk 0:03:00.9]} 1... Nf6 {[%clk 0:02:58.2]} 2. c4 {[%clk 0:02:58.8]}
2... e6 {[%clk 0:02:58]} 3. g3 {[%clk 0:02:58.4]} 3... d5 {[%clk 0:02:58.2]} 4.
Bg2 {[%clk 0:02:57.8]} 4... Be7 {[%clk 0:02:58.6]} 5. O-O {[%clk 0:02:57.7]}
5... O-O {[%clk 0:02:59.1]} 6. b3 {[%clk 0:02:58.3]} 6... c5 {[%clk 0:02:59.1]}
7. Bb2 {[%clk 0:02:55.9]} 7... Nc6 {[%clk 0:02:59.4]} 8. e3 {[%clk 0:02:55.9]}
8... b6 {[%clk 0:02:46.6]} 9. Nc3 {[%clk 0:02:55.3]} 9... Bb7 {[%clk 0:02:45]}
10. cxd5 {[%clk 0:02:55.3]} 10... Nxd5 {[%clk 0:02:44.8]} 11. Nxd5 {[%clk
0:02:55.2]} 11... Qxd5 {[%clk 0:02:43.3]} 12. d4 {[%clk 0:02:55.2]} 12... cxd4
{[%clk 0:02:38.7]} 13. Nxd4 {[%clk 0:02:52.4]} 13... Qxg2+ {[%clk 0:02:24.8]}
14. Kxg2 {[%clk 0:02:53.3]} 14... Nxd4+ {[%clk 0:02:24.9]} 15. f3 {[%clk
0:02:48.2]} 15... Nxf3 {[%clk 0:02:02.5]} 16. Rxf3 {[%clk 0:02:47.3]} 16... Rad8
{[%clk 0:02:01.4]} 17. Qe2 {[%clk 0:02:41.2]} 17... Bb4 {[%clk 0:01:53.6]} 18.
Rd1 {[%clk 0:02:41.1]} 18... Rxd1 {[%clk 0:01:40.8]} 19. Qxd1 {[%clk 0:02:39.5]}
19... Rc8 {[%clk 0:01:27.4]} 20. Qd7 {[%clk 0:01:57]} 20... Rc2+ {[%clk
0:01:19.6]} 21. Kh3 {[%clk 0:01:57]} 21... Bxf3 {[%clk 0:01:15.3]} 22. Qd8+
{[%clk 0:01:50.2]} 22... Bf8 {[%clk 0:01:15.3]} 23. Ba3 {[%clk 0:01:48.8]} 23...
Bg2+ {[%clk 0:01:12.8]} 24. Kh4 {[%clk 0:01:45.9]} 24... Rc5 {[%clk 0:00:52.7]}
25. Bxc5 {[%clk 0:01:39.5]} 25... bxc5 {[%clk 0:00:52.8]} 26. g4 {[%clk
0:01:28.8]} 26... h6 {[%clk 0:00:50.2]} 27. Kg3 {[%clk 0:01:28.6]} 27... Bd5
{[%clk 0:00:49.1]} 28. h4 {[%clk 0:01:22.8]} 28... g6 {[%clk 0:00:40.5]} 29. h5
{[%clk 0:01:12.6]} 29... g5 {[%clk 0:00:39.8]} 30. Qb8 {[%clk 0:01:00.8]} 30...
a5 {[%clk 0:00:34.4]} 31. Qa7 {[%clk 0:00:58.1]} 31... Bd6+ {[%clk 0:00:33.5]}
32. Kf2 {[%clk 0:00:58.3]} 32... f5 {[%clk 0:00:20.2]} 33. gxf5 {[%clk 0:00:50]}
33... exf5 {[%clk 0:00:20.4]} 34. Qxa5 {[%clk 0:00:50.1]} 34... g4 {[%clk
0:00:19.8]} 35. Qd8+ {[%clk 0:00:50.1]} 35... Bf8 {[%clk 0:00:18.6]} 36. Qxd5+
{[%clk 0:00:50.3]} 1-0

[Event "*** Titled Tuesday Blitz"]
[Site "Chess.com"]
[Date "2020.11.03"]
[Round "6"]
[White "MashaFromRussia"]
[Black "Lion-Al-Messi"]
[Result "0-1"]
[WhiteElo "2354"]
[BlackElo "2559"]
[TimeControl "180+1"]
[EndTime "11:09:29 PST"]
[Termination "Lion-Al-Messi won by resignation"]

1. d4 {[%clk 0:03:00.9]} 1... d5 {[%clk 0:02:59.7]} 2. c4 {[%clk 0:03:01.2]}
2... c6 {[%clk 0:02:59.3]} 3. Nf3 {[%clk 0:03:01.5]} 3... Nf6 {[%clk 0:02:59.9]}
4. Nc3 {[%clk 0:03:02]} 4... dxc4 {[%clk 0:03:00.5]} 5. g3 {[%clk 0:03:02.2]}
5... b5 {[%clk 0:02:57.3]} 6. Bg2 {[%clk 0:03:02.6]} 6... e6 {[%clk 0:02:54.5]}
7. O-O {[%clk 0:03:03]} 7... Be7 {[%clk 0:02:52.5]} 8. e4 {[%clk 0:03:03.2]}
8... O-O {[%clk 0:02:52.3]} 9. e5 {[%clk 0:03:01.5]} 9... Nd5 {[%clk 0:02:52.4]}
10. Ne4 {[%clk 0:03:02]} 10... Bb7 {[%clk 0:02:45.6]} 11. Bg5 {[%clk 0:02:53.9]}
11... f6 {[%clk 0:02:45.4]} 12. exf6 {[%clk 0:02:43.6]} 12... Nxf6 {[%clk
0:02:44.7]} 13. Qe2 {[%clk 0:02:35]} 13... Nxe4 {[%clk 0:02:43.7]} 14. Qxe4
{[%clk 0:02:33.2]} 14... Bxg5 {[%clk 0:02:43.2]} 15. Nxg5 {[%clk 0:02:28.1]}
15... Qxg5 {[%clk 0:02:44.1]} 16. Qxe6+ {[%clk 0:02:28.6]} 16... Kh8 {[%clk
0:02:43.6]} 17. Rae1 {[%clk 0:02:28]} 17... Qf6 {[%clk 0:02:38.3]} 18. Qxf6
{[%clk 0:02:10.8]} 18... gxf6 {[%clk 0:02:39.2]} 19. Re7 {[%clk 0:02:11]} 19...
Bc8 {[%clk 0:02:34.8]} 20. Rfe1 {[%clk 0:02:00.4]} 20... Bd7 {[%clk 0:02:34.3]}
21. Be4 {[%clk 0:01:39.9]} 21... f5 {[%clk 0:02:33.8]} 22. Bf3 {[%clk
0:01:40.3]} 22... a5 {[%clk 0:02:30.9]} 23. h4 {[%clk 0:01:17.8]} 23... b4
{[%clk 0:02:19.5]} 24. h5 {[%clk 0:01:17.7]} 24... h6 {[%clk 0:02:20]} 25. g4
{[%clk 0:00:51.9]} 25... a4 {[%clk 0:02:07.3]} 26. g5 {[%clk 0:00:43.5]} 26...
hxg5 {[%clk 0:01:57.4]} 27. h6 {[%clk 0:00:43.7]} 27... Rf6 {[%clk 0:01:43.9]}
28. Rg7 {[%clk 0:00:23.3]} 28... Rxh6 {[%clk 0:01:38.8]} 29. Ree7 {[%clk
0:00:23.3]} 29... a3 {[%clk 0:01:34.4]} 30. Rgf7 {[%clk 0:00:20.9]} 30... Na6
{[%clk 0:01:25.2]} 31. bxa3 {[%clk 0:00:20.5]} 31... c3 {[%clk 0:01:23.1]} 32.
Bd1 {[%clk 0:00:20.3]} 32... Be6 {[%clk 0:01:17.4]} 33. Rg7 {[%clk 0:00:15.8]}
33... bxa3 {[%clk 0:01:14.8]} 34. Rb7 {[%clk 0:00:08]} 34... Bxa2 {[%clk
0:01:10.3]} 35. Rge7 {[%clk 0:00:05.9]} 35... Bg8 {[%clk 0:01:06.7]} 0-1

[Event "*** Titled Tuesday Blitz"]
[Site "Chess.com"]
[Date "2020.11.03"]
[Round "6"]
[White "saraswathii"]
[Black "boasovietica"]
[Result "0-1"]
[WhiteElo "2377"]
[BlackElo "2542"]
[TimeControl "180+1"]
[EndTime "11:09:29 PST"]
[Termination "boasovietica won by resignation"]

1. e4 {[%clk 0:03:00.9]} 1... e5 {[%clk 0:02:59.6]} 2. d3 {[%clk 0:02:58.3]}
2... Nc6 {[%clk 0:02:56.4]} 3. Nf3 {[%clk 0:02:40.6]} 3... Nf6 {[%clk
0:02:52.6]} 4. g3 {[%clk 0:02:40.5]} 4... Bc5 {[%clk 0:02:51.8]} 5. Bg2 {[%clk
0:02:39.8]} 5... d6 {[%clk 0:02:50.6]} 6. O-O {[%clk 0:02:39.6]} 6... Bg4 {[%clk
0:02:50.7]} 7. c3 {[%clk 0:02:39.7]} 7... Qd7 {[%clk 0:02:47.4]} 8. b4 {[%clk
0:02:37.7]} 8... Bb6 {[%clk 0:02:46.8]} 9. a4 {[%clk 0:02:35]} 9... a6 {[%clk
0:02:45.2]} 10. Nbd2 {[%clk 0:02:28.8]} 10... h5 {[%clk 0:02:43.2]} 11. h4
{[%clk 0:02:27.8]} 11... Nh7 {[%clk 0:02:12.2]} 12. Nc4 {[%clk 0:02:26.3]} 12...
Ba7 {[%clk 0:02:11.4]} 13. b5 {[%clk 0:02:22.9]} 13... Ne7 {[%clk 0:02:05.5]}
14. Be3 {[%clk 0:02:08.8]} 14... O-O {[%clk 0:01:49]} 15. b6 {[%clk 0:01:54.2]}
15... Bb8 {[%clk 0:01:34.6]} 16. bxc7 {[%clk 0:01:40.9]} 16... Bxc7 {[%clk
0:01:34.8]} 17. Bb6 {[%clk 0:01:40.1]} 17... Rac8 {[%clk 0:01:26.1]} 18. Qb3
{[%clk 0:01:31.4]} 18... Be6 {[%clk 0:01:22.7]} 19. Nfd2 {[%clk 0:01:21.5]}
19... Bxb6 {[%clk 0:01:16.5]} 20. Qxb6 {[%clk 0:01:09.1]} 20... Rc6 {[%clk
0:01:16.1]} 21. Qb4 {[%clk 0:01:07.7]} 21... Rfc8 {[%clk 0:01:09.7]} 22. Nb6
{[%clk 0:01:05.3]} 22... Rxb6 {[%clk 0:01:08.8]} 23. Qxb6 {[%clk 0:01:06.2]}
23... Rxc3 {[%clk 0:01:08.2]} 24. d4 {[%clk 0:01:06]} 24... Rd3 {[%clk
0:00:54.5]} 25. Nf3 {[%clk 0:00:59.4]} 25... Bg4 {[%clk 0:00:52.3]} 26. Nh2
{[%clk 0:00:40.7]} 26... Rxd4 {[%clk 0:00:45.1]} 27. Nxg4 {[%clk 0:00:40.1]}
27... hxg4 {[%clk 0:00:44.4]} 28. Rfb1 {[%clk 0:00:39.2]} 28... Nc6 {[%clk
0:00:23.4]} 29. Qxb7 {[%clk 0:00:37.6]} 29... Rd1+ {[%clk 0:00:22.8]} 0-1

[Event "*** Titled Tuesday Blitz"]
[Site "Chess.com"]
[Date "2020.11.03"]
[Round "6"]
[White "GoltsevDmitry2000"]
[Black "Margarita2907"]
[Result "1-0"]
[WhiteElo "2663"]
[BlackElo "2240"]
[TimeControl "180+1"]
[EndTime "11:09:33 PST"]
[Termination "GoltsevDmitry2000 won on time"]

1. e4 {[%clk 0:03:00.4]} 1... c5 {[%clk 0:02:58.6]} 2. Nf3 {[%clk 0:03:00.5]}
2... d6 {[%clk 0:02:58.4]} 3. d4 {[%clk 0:03:01]} 3... cxd4 {[%clk 0:02:58.5]}
4. Nxd4 {[%clk 0:03:01.9]} 4... Nf6 {[%clk 0:02:58]} 5. Nc3 {[%clk 0:03:02.4]}
5... a6 {[%clk 0:02:58.2]} 6. Be2 {[%clk 0:03:00.1]} 6... e5 {[%clk 0:02:56.9]}
7. Nb3 {[%clk 0:03:00]} 7... Be7 {[%clk 0:02:57.2]} 8. a4 {[%clk 0:02:59.4]}
8... O-O {[%clk 0:02:55.1]} 9. O-O {[%clk 0:02:58.7]} 9... Nbd7 {[%clk
0:02:52.2]} 10. Be3 {[%clk 0:02:59]} 10... b6 {[%clk 0:02:49.8]} 11. Bf3 {[%clk
0:02:57.9]} 11... Bb7 {[%clk 0:02:47.6]} 12. Qd2 {[%clk 0:02:58.2]} 12... Qc7
{[%clk 0:02:46.5]} 13. Rfd1 {[%clk 0:02:55.8]} 13... Rfd8 {[%clk 0:02:41.6]} 14.
h3 {[%clk 0:02:54.1]} 14... Nf8 {[%clk 0:02:35.3]} 15. Nc1 {[%clk 0:02:48.8]}
15... Ne6 {[%clk 0:02:25.6]} 16. N1e2 {[%clk 0:02:48]} 16... Rd7 {[%clk
0:02:05.9]} 17. Ng3 {[%clk 0:02:47.6]} 17... Bf8 {[%clk 0:02:03.8]} 18. Rac1
{[%clk 0:02:42.7]} 18... Rad8 {[%clk 0:02:01]} 19. Nd5 {[%clk 0:02:41.1]} 19...
Nxd5 {[%clk 0:01:54.8]} 20. exd5 {[%clk 0:02:42]} 20... Nc5 {[%clk 0:01:48.7]}
21. b3 {[%clk 0:02:35.8]} 21... Re8 {[%clk 0:01:41]} 22. Bg4 {[%clk 0:02:32.6]}
22... Rdd8 {[%clk 0:01:35.7]} 23. Nf5 {[%clk 0:02:32.8]} 23... Bc8 {[%clk
0:01:32.2]} 24. Ng3 {[%clk 0:02:22.9]} 24... Bxg4 {[%clk 0:01:27.9]} 25. hxg4
{[%clk 0:02:23.8]} 25... g6 {[%clk 0:01:18.1]} 26. Bxc5 {[%clk 0:02:20.5]} 26...
Qxc5 {[%clk 0:01:12.8]} 27. Ne4 {[%clk 0:02:19.4]} 27... Qc7 {[%clk 0:01:07.8]}
28. Nf6+ {[%clk 0:02:19.4]} 28... Kh8 {[%clk 0:01:01.2]} 29. Nxe8 {[%clk
0:02:20.3]} 29... Rxe8 {[%clk 0:01:00.3]} 30. c4 {[%clk 0:02:20.4]} 30... Bg7
{[%clk 0:00:57]} 31. b4 {[%clk 0:02:19.9]} 31... e4 {[%clk 0:00:53.2]} 32. Qe3
{[%clk 0:02:18.9]} 32... Qd7 {[%clk 0:00:42.5]} 33. Qxb6 {[%clk 0:02:13.1]}
33... Qxa4 {[%clk 0:00:40.3]} 34. Qxd6 {[%clk 0:02:10]} 34... e3 {[%clk
0:00:27.9]} 35. fxe3 {[%clk 0:02:09.2]} 35... Qb3 {[%clk 0:00:25.5]} 36. Qf4
{[%clk 0:02:06.5]} 36... Be5 {[%clk 0:00:14.6]} 37. Qf3 {[%clk 0:02:00.7]} 37...
Bb2 {[%clk 0:00:10.9]} 38. Rb1 {[%clk 0:01:57.1]} 38... Qc3 {[%clk 0:00:10]} 39.
d6 {[%clk 0:01:55.7]} 39... Ba3 {[%clk 0:00:08.6]} 40. d7 {[%clk 0:01:55.4]}
40... Rd8 {[%clk 0:00:08.7]} 41. Qxf7 {[%clk 0:01:47.4]} 41... Qxe3+ {[%clk
0:00:07.5]} 42. Qf2 {[%clk 0:01:47.4]} 42... Qe7 {[%clk 0:00:05.6]} 43. Qd4+
{[%clk 0:01:46.4]} 43... Kg8 {[%clk 0:00:04.4]} 44. c5 {[%clk 0:01:47.3]} 44...
Qe6 {[%clk 0:00:01.9]} 45. Qd5 {[%clk 0:01:43.6]} 45... Qxd5 {[%clk 0:00:01.3]}
46. Rxd5 {[%clk 0:01:44.5]} 1-0

[Event "*** Titled Tuesday Blitz"]
[Site "Chess.com"]
[Date "2020.11.03"]
[Round "6"]
[White "vladgoncharov"]
[Black "MF1966Idrisov"]
[Result "0-1"]
[WhiteElo "2463"]
[BlackElo "2358"]
[TimeControl "180+1"]
[EndTime "11:09:36 PST"]
[Termination "MF1966Idrisov won by resignation"]

1. d4 {[%clk 0:03:00.9]} 1... d5 {[%clk 0:02:59.4]} 2. c4 {[%clk 0:02:56.3]}
2... e6 {[%clk 0:02:59.4]} 3. Nc3 {[%clk 0:02:53.6]} 3... Nf6 {[%clk 0:02:59.4]}
4. Bg5 {[%clk 0:02:52.5]} 4... Be7 {[%clk 0:02:59.5]} 5. e3 {[%clk 0:02:52.4]}
5... O-O {[%clk 0:02:58.1]} 6. Bd3 {[%clk 0:02:52.5]} 6... b6 {[%clk 0:02:58.2]}
7. cxd5 {[%clk 0:02:51.8]} 7... Nxd5 {[%clk 0:02:57.2]} 8. Bxe7 {[%clk 0:02:47]}
8... Qxe7 {[%clk 0:02:56.8]} 9. Nxd5 {[%clk 0:02:45.8]} 9... exd5 {[%clk
0:02:55.8]} 10. Ne2 {[%clk 0:02:45.9]} 10... Bg4 {[%clk 0:02:47.9]} 11. O-O
{[%clk 0:02:44.5]} 11... Bxe2 {[%clk 0:02:46.9]} 12. Qxe2 {[%clk 0:02:44.2]}
12... g6 {[%clk 0:02:38.5]} 13. Rac1 {[%clk 0:02:39.9]} 13... Rc8 {[%clk
0:02:36.9]} 14. Qf3 {[%clk 0:02:34]} 14... Qd6 {[%clk 0:02:30.9]} 15. Rfd1
{[%clk 0:02:27.9]} 15... Nd7 {[%clk 0:02:29.6]} 16. Ba6 {[%clk 0:02:23.4]} 16...
Rd8 {[%clk 0:02:20.6]} 17. Bb5 {[%clk 0:02:22.9]} 17... Qb4 {[%clk 0:02:12]} 18.
Bc6 {[%clk 0:02:20]} 18... Rab8 {[%clk 0:02:08.6]} 19. Bxd5 {[%clk 0:02:19.8]}
19... Rf8 {[%clk 0:01:45.2]} 20. Rxc7 {[%clk 0:02:18.3]} 20... Rbd8 {[%clk
0:01:44]} 21. Bb3 {[%clk 0:02:11.8]} 21... a5 {[%clk 0:01:38.1]} 22. h4 {[%clk
0:02:10.7]} 22... a4 {[%clk 0:01:33.9]} 23. Rc4 {[%clk 0:02:08.5]} 23... Qd6
{[%clk 0:01:15.8]} 24. Bxa4 {[%clk 0:02:03.2]} 24... b5 {[%clk 0:01:12.8]} 25.
Bxb5 {[%clk 0:02:01.4]} 25... Ne5 {[%clk 0:01:13]} 26. Qe2 {[%clk 0:01:46.8]}
26... Nxc4 {[%clk 0:01:12.6]} 27. Bxc4 {[%clk 0:01:46.9]} 27... h5 {[%clk
0:01:02.4]} 28. g3 {[%clk 0:01:41.3]} 28... Kg7 {[%clk 0:01:01.7]} 29. b3 {[%clk
0:01:40.4]} 29... Rfe8 {[%clk 0:00:56.3]} 30. Qf3 {[%clk 0:01:39.8]} 30... Qc7
{[%clk 0:00:54.8]} 31. a4 {[%clk 0:01:38.9]} 31... Rd6 {[%clk 0:00:54.9]} 32.
Kg2 {[%clk 0:01:38.3]} 32... Rf6 {[%clk 0:00:54.8]} 33. Qe2 {[%clk 0:01:29.8]}
33... Re4 {[%clk 0:00:52]} 34. d5 {[%clk 0:01:25.2]} 34... Rg4 {[%clk
0:00:44.5]} 35. Qb2 {[%clk 0:01:11.5]} 35... Qb6 {[%clk 0:00:37]} 36. d6 {[%clk
0:01:08.8]} 36... Rxc4 {[%clk 0:00:31.6]} 37. d7 {[%clk 0:01:06.3]} 37... Qc6+
{[%clk 0:00:31.4]} 38. Kg1 {[%clk 0:00:59.8]} 38... Rc2 {[%clk 0:00:31.4]} 39.
Qxf6+ {[%clk 0:00:59.5]} 39... Qxf6 {[%clk 0:00:25.3]} 40. f4 {[%clk 0:00:59]}
40... Qd8 {[%clk 0:00:24]} 0-1